{"text_format":"3","workbook":"xlsx","n_sheets":1,"sheets":["VYÚČTOVÁNÍ VÝDAJŮ"],"not_rendered":{"defined_names":4},"read":"whole","date_system":"1900"}

{"sheet":"VYÚČTOVÁNÍ VÝDAJŮ","index":0,"n_rows":22,"n_cols":12,"rows_kept":22,"merged":[[1,2,1,3],[1,5,1,6],[3,2,3,3],[3,6,3,7],[3,10,3,11],[4,2,4,3],[4,6,4,7],[4,10,4,11],[20,2,20,4],[20,6,20,8],[21,2,21,4],[21,6,21,8]]}
[null,"VYÚČTOVÁNÍ VÝDAJŮ",{"$nulls":8},"Pouze pro interní použití"]
[null,"ÚČEL:",null,null,"ČÍSLO PŘÍKAZU:",null,null,"PLATEBNÍ OBDOBÍ","OD:",{"$f":"IF(COUNTA(DataOVýdajích[Datum])=0,\"\",MIN(DataOVýdajích[Datum]))","v":""},"DO:",{"$f":"IF(COUNTA(DataOVýdajích[Datum])=0,\"\",MAX(DataOVýdajích[Datum]))","v":""}]
[null,"ÚDAJE O ZAMĚSTNANCI:"]
[null,"JMÉNO",{"$nulls":3},"POZICE",{"$nulls":3},"RODNÉ ČÍSLO"]
[null,"ODDĚLENÍ",{"$nulls":3},"NADŘÍZENÝ",{"$nulls":3},"OSOBNÍ ČÍSLO"]
[]
[null,"Datum","Účet","Popis","Ubytování","Doprava","Palivo","Stravování","Telefon","Zábava","Různé","Celkem"]
[{"$nulls":11},{"$f":"SUM(DataOVýdajích[[#This Row],[Ubytování]:[Různé]])","v":{"v":0,"d":"0.00 Kč"}}]
[{"$nulls":11},{"$f":"SUM(DataOVýdajích[[#This Row],[Ubytování]:[Různé]])","v":{"v":0,"d":"0.00 Kč"}}]
[{"$nulls":11},{"$f":"SUM(DataOVýdajích[[#This Row],[Ubytování]:[Různé]])","v":{"v":0,"d":"0.00 Kč"}}]
[{"$nulls":11},{"$f":"SUM(DataOVýdajích[[#This Row],[Ubytování]:[Různé]])","v":{"v":0,"d":"0.00 Kč"}}]
[{"$nulls":11},{"$f":"SUM(DataOVýdajích[[#This Row],[Ubytování]:[Různé]])","v":{"v":0,"d":"0.00 Kč"}}]
[{"$nulls":11},{"$f":"SUM(DataOVýdajích[[#This Row],[Ubytování]:[Různé]])","v":{"v":0,"d":"0.00 Kč"}}]
[{"$nulls":11},{"$f":"SUM(DataOVýdajích[[#This Row],[Ubytování]:[Různé]])","v":{"v":0,"d":"0.00 Kč"}}]
[{"$nulls":11},{"$f":"SUM(DataOVýdajích[[#This Row],[Ubytování]:[Různé]])","v":{"v":0,"d":"0.00 Kč"}}]
[{"$nulls":11},{"$f":"SUM(DataOVýdajích[[#This Row],[Ubytování]:[Různé]])","v":{"v":0,"d":"0.00 Kč"}}]
[{"$nulls":11},{"$f":"SUM(DataOVýdajích[[#This Row],[Ubytování]:[Různé]])","v":{"v":0,"d":"0.00 Kč"}}]
[{"$nulls":11},{"$f":"SUM(DataOVýdajích[[#This Row],[Ubytování]:[Různé]])","v":{"v":0,"d":"0.00 Kč"}}]
[null,"Celkem",null,null,{"$f":"SUBTOTAL(109,DataOVýdajích[Ubytování])","v":{"v":0,"d":"0.00 Kč"}},{"$f":"SUBTOTAL(109,DataOVýdajích[Doprava])","v":{"v":0,"d":"0.00 Kč"}},{"$f":"SUBTOTAL(109,DataOVýdajích[Palivo])","v":{"v":0,"d":"0.00 Kč"}},{"$f":"SUBTOTAL(109,DataOVýdajích[Stravování])","v":{"v":0,"d":"0.00 Kč"}},{"$f":"SUBTOTAL(109,DataOVýdajích[Telefon])","v":{"v":0,"d":"0.00 Kč"}},{"$f":"SUBTOTAL(109,DataOVýdajích[Zábava])","v":{"v":0,"d":"0.00 Kč"}},{"$f":"SUBTOTAL(109,DataOVýdajích[Různé])","v":{"v":0,"d":"0.00 Kč"}},{"$f":"SUBTOTAL(109,DataOVýdajích[Celkem])","v":{"v":0,"d":"0.00 Kč"}}]
[{"$nulls":10},"MEZISOUČET",{"$f":"DataOVýdajích[[#Totals],[Celkem]]","v":{"v":0,"d":"0.00 Kč"}}]
[null,"SCHVÁLIL(A):",{"$nulls":3},"POZNÁMKY: ",{"$nulls":4},"ZÁLOHY",{"v":0,"d":"0.00 Kč"}]
[{"$nulls":10},"CELKEM",{"$f":"Mezisoučet-Zálohy","v":{"v":0,"d":"0.00 Kč"}}]